[Event "European Senior Team Chess Championship"]
[Site "Chess.com"]
[Date "2023.07.17"]
[Round "6"]
[White "Holst, Per"]
[Black "Higgie, Charles L"]
[Result "1/2-1/2"]
[ECO "A24"]
[WhiteElo "2090"]
[BlackElo "1924"]
[Annotator "Kemenade"]
[PlyCount "72"]
[EventDate "2023.??.??"]
[TimeControl "5400+30"]

1. c4 {[%emt 0:00:30]} Nf6 {[%emt 0:00:16]} 2. Nc3 {[%emt 0:00:00]} g6 {[%emt 0:00:15]} 3. e4 {[%emt 0:00:00]} e5 {[%emt 0:01:42]} 4. g3 {[%emt 0:01:25]} Bg7 {[%emt 0:02:22]} 5. Bg2 {[%emt 0:00:11]} O-O {[%emt 0:00:29]} 6. Nge2 {[%emt 0:00:07]} d6 {[%emt 0:01:57]} 7. O-O {[%emt 0:01:37]} Be6 {[%emt 0:00:54]} 8. d3 {[%emt 0:00:29]} c6 {[%emt 0:03:57]} 9. h3 {[%emt 0:05:15]} d5 {[%emt 0:11:46]} 10. cxd5 {[%emt 0:05:23]} cxd5 {[%emt 0:00:12]} 11. d4 {[%emt 0:00:55]} Nxe4 {[%emt 0:07:16]} 12. Nxe4 {[%emt 0:13:36]} dxe4 {[%emt 0:00:13]} 13. dxe5 {[%emt 0:00:31]} Bxe5 {[%emt 0:09:46]} 14. Nf4 {[%emt 0:13:00]} Bc4 {[%emt 0:20:54]} 15. Re1 {[%emt 0:06:32]} f5 {[%emt 0:01:48]} 16. Qc2 {[%emt 0:02:03]} Bf7 {[%emt 0:04:08]} 17. Be3 {[%emt 0:03:39]} Nc6 $19 {[%emt 0:00:40]} 18. Red1 {[%emt 0:01:22]} Qf6 {[%emt 0:02:44]} 19. Nd5 {[%emt 0:02:58]} Bxd5 {[%emt 0:01:10]} 20. Rxd5 {[%emt 0:00:14]} Nb4 {[%emt 0:00:18]} 21. Qb3 {[%emt 0:00:45]} Nxd5 $19 {[%emt 0:00:10]} 22. Qxd5+ {[%emt 0:00:13]} Rf7 {[%emt 0:00:17]} (22... Kh8 $19) 23. Bf1 {[%emt 0:00:33]} Kg7 {[%emt 0:01:04]} 24. Bc4 {[%emt 0:01:22]} Rc7 {[%emt 0:00:33]} 25. Rd1 {[%emt 0:01:39]} Bxb2 {[%emt 0:02:36]} (25... h6 26. b3 Kh7 {KD3.2}) 26. Bf4 {[%emt 0:03:22]} Rac8 {[%emt 0:02:35]} (26... Rd8 27. Qxd8 Qxd8 28. Rxd8 Rxc4 $19 {easier with same colourBs}) 27. Bxc7 {[%emt 0:03:40]} Rxc7 $19 {[%emt 0:00:10]} 28. Bb3 {[%emt 0:00:40]} Qe7 {[%emt 0:03:35]} 29. Kg2 {[%emt 0:02:38]} Rc5 {[%emt 0:02:13]} (29... Bc3 30. h4 e3 31. fxe3 Qxe3 32. Rd3 (32. Qd3 Qxd3 33. Rxd3 Be5 $19) 32... Qe2+ 33. Kh3 Qf1+ 34. Kh2 Qe1 35. Qg8+ Kh6 36. Qf8+ Bg7 37. Qd8 Re7 38. Bd1 Be5 39. Kg2 Rf7 {the Engines say winning, but looks obscure to human eye}) 30. Qg8+ {[%emt 0:03:24]} Kh6 {[%emt 0:00:15]} 31. h4 {[%emt 0:00:42]} Re5 {[%emt 0:01:38]} (31... Rc7 $17) 32. Qc8 {[%emt 0:03:34]} Rc5 {[%emt 0:03:21]} 33. Rd7 $11 {[%emt 0:05:46]} Rxc8 {[%emt 0:00:45]} 34. Rxe7 {[%emt 0:00:12]} Rb8 {[%emt 0:00:31]} 35. Bd5 {[%emt 0:02:35]} (35. g4 $1 $11) 35... Rd8 {[%emt 0:06:38]} 36. Bb3 {[%emt 0:00:34]} (36. Be6 $11) 36... Rb8 {[%emt 0:00:30]} (36... Rd2 37. Bg8 g5 38. Rxh7+ Kg6 39. h5+ Kf6 40. Rf7+ Ke5 41. Bh7 Ke6 42. Rxf5 e3 43. Rf3 Bd4 44. Kf1 Rxf2+ 45. Rxf2 exf2 $1 {Bl now has one passed pawn, and the possibility of advancing a pawn on the Q side with his more actve K to win the B, and then return to K side.This is a dangerous plan for Wh. on quite a few moves there is only one move that draws. and it only just fails to win by a tempo or two.} 46. a4 Kd5 47. h6 Kc5 48. Bf5 Kb4 49. Bd7 a6 50. h7 b5 51. axb5 axb5 52. h8=Q Bxh8 53. Kxf2 Kc4 54. g4 b4 55. Ke1 Kc3 56. Be8 b3 (56... Kb2 57. Kd2 b3 58. Bf7 Ka3 59. Kd3) 57. Kd1 b2 (57... Kb2 58. Bf7 Ka3 59. Kc1 Bb2+) 58. Bg6 Kb3 59. Bb1 $11) (36... Rd2 37. Bg8 Bg7 38. Rxb7 a5 39. Re7 Rd8 40. Bb3 Bf8 41. Rf7 Bc5 42. Rc7 Bb6 43. Rb7) (36... Bd4 37. Rxb7 Bb6 {gives some chances, but it looks as if W can survive with} 38. f4 e3 39. Kf3 Rd2 40. g4 fxg4+ 41. Kxg4 Rg2+ 42. Kh3 e2 43. Re7 Bc5 44. Re4 (44. Kxg2 Bxe7 45. Kf2 Bxh4+ 46. Kxe2 {also holds})) (36... b5 37. g4 {other moves lose} (37. Rxa7 Rd2 38. Bg8 Rxf2+ 39. Kg1 (39. Kxf2 Bd4+ 40. Kg2 Bxa7 {and Bl will get two connected passed pawns on the K side} 41. a3 {fails as the Wh B cant get to take b5 in time} (41. Bd5 b4 $19) 41... Bc5 $19) 39... Bg7 40. Re7 Rd2 41. Kf1 Rd8 42. Bb3 Bf8 43. Rb7 b4 (43... Rd2 44. Rxb5 Bd6 45. g4 e3 (45... fxg4 {also wins}) (45... f4 46. Rd5 {draws}) 46. Bc4 Rf2+ 47. Ke1 fxg4 48. Bf1 g3 49. Rb3 Bf4 50. Rb4 Bc7 51. Rg4 Ba5+ 52. Kd1 Rxf1+ {Engines}) 44. Ke2 Bd6 45. Kf2 Be5 46. Bc4 (46. Rxb4 Rd2+ 47. Ke3 Rd3+ 48. Ke2 Bxg3 {Bl gets 4 passed pawns}) 46... Rd2+ 47. Ke3 Rg2 48. Rxb4 Bxg3 {and wins the h pawn} 49. Bf1 {or Bl can just take the a pawn & return to collect h4} Rg1 50. Rb1 Bxh4 $19)) (36... b5 37. g4 {returning to best line for both sides} a6 (37... fxg4 38. Rxa7 Bd4 39. Rb7 Rf8 40. Kg3 Bxf2+ 41. Kxg4 Re8 42. Bf7 Rd8 43. Re7 e3 44. Re4 Kg7 45. Be8 Rd5 46. Kf3 Bxh4 47. Rxe3 {& Bl has two connected passed pawns on the K side}) 38. Be6 (38. Kg3 Rd3+ 39. Kg2 fxg4 40. Rxe4 Kh5 $19) 38... fxg4 39. Bxg4 Rd4 40. Be6 Ba3 41. Ra7 Bc5 42. Rc7 (42. Rxa6 Rd2 $19) 42... Bb6 43. Rb7 Bd8 44. Bg8 Bxh4 45. Rxh7+ Kg5 46. f4+ exf3+ 47. Kxf3 Rf4+ 48. Ke3 Bf2+ 49. Kd3 Rf6 $19 {Bl has the appropriate pawns oppotunities passed on one side, potential on the other for a pure B ending, while with Rs still on theter are mating possibilities as well.}) 1/2-1/2